bitfinex/quotes_ETHUSD_20250803
["timestamp","ask_amount","ask_price","bid_price","bid_amount"]
[1754208978630,34.416,3471.2,3471.1,0.002]
[1754208978836,34.416,3471.2,3471.1,0.4526]
[1754208979056,34.416,3471.2,3471.1,0.9008]
[1754208979334,3.0,3471.8,3471.1,0.9008]
[1754208979335,4.417,3471.4,3471.1,0.9008]
[1754208979641,30.0,3471.3,3471.2,0.8988]
[1754208979848,30.0,3471.3,3471.1,0.002]
[1754208980053,34.417,3471.2,3471.1,0.002]
[1754208980440,30.0,3471.3,3471.1,0.002]
[1754208980621,4.417,3471.2,3471.1,0.9059]
[1754208982249,38.4087,3471.2,3471.1,0.4718]
[1754208982828,38.4087,3471.2,3471.1,0.9059]
[1754208984142,3.0,3471.2,3471.1,0.9059]
[1754208984650,0.3,3471.8,3471.1,0.9059]
[1754208984855,3.0,3471.4,3471.2,0.9039]
[1754208985064,4.417,3471.3,3471.1,0.002]
[1754208985656,4.417,3471.3,3471.2,0.9039]
[1754208986957,3.0,3471.5,3471.2,0.9039]
[1754208987146,7.417,3471.4,3471.3,0.9039]
[1754208987349,7.416,3471.4,3471.3,0.9039]
[1754208988871,8.1576,3471.4,3471.3,0.4698]
[1754208989023,43.55,3471.2,3471.1,0.002]
[1754208989229,37.967,3471.2,3471.1,0.002]
[1754208990347,37.967,3471.2,3471.1,0.4718]
[1754208990725,37.967,3471.2,3471.1,0.002]
[1754208990927,40.83524707,3471.2,3471.1,0.002]
[1754208991967,40.83524707,3471.2,3471.1,0.4718]
[1754208993084,37.417,3471.2,3471.1,0.9059]
[1754208993638,37.42,3471.2,3471.1,0.9059]
[1754208993953,37.421,3471.2,3471.1,0.9059]
[1754208994153,7.42,3471.2,3471.1,0.9059]
[1754208994776,3.0,3471.2,3471.1,0.9059]
[1754208994977,3.0,3471.5,3471.1,0.9059]
[1754208995282,30.0,3471.4,3471.2,0.9039]
[1754208995444,30.0,3471.4,3471.1,0.002]
[1754208995647,3.0,3471.4,3471.3,0.9039]
[1754208996681,30.0,3471.4,3471.3,0.9039]
[1754208996862,30.0,3471.9,3471.3,0.9039]
[1754208997063,3.0,3471.6,3471.4,0.9039]
[1754208997273,4.419,3471.5,3471.1,0.002]
[1754208997846,10.0,3472.1,3471.2,14.18123754]
[1754208998187,30.0,3472.2,3471.3,0.9039]
[1754208998345,30.0,3472.2,3471.2,14.14364754]
[1754208998723,4.419,3472.1,3471.4,0.9039]
[1754208998880,4.419,3472.1,3471.3,1.85636475]
[1754208999183,4.42,3472.0,3471.5,0.9039]
[1754208999381,4.42,3472.0,3471.2,0.86631]
[1754208999382,30.0,3471.9,3471.2,0.86631]
[1754208999570,40.0,3471.7,3471.1,0.4361]
[1754208999770,3.55,3472.0,3471.3,0.4698]
[1754208999966,43.0,3471.8,3471.4,0.4341]
[1754209000282,30.0,3471.7,3471.5,0.4698]
[1754209000486,1.733,3472.5,3471.5,0.4698]
[1754209000652,1.733,3472.5,3471.6,0.4341]
[1754209000653,0.55,3472.0,3471.6,0.4341]
[1754209000852,43.0,3471.8,3471.7,0.4698]
[1754209001053,33.0,3471.8,3471.7,0.9039]
[1754209002701,33.0,3471.8,3471.7,0.4698]
[1754209003198,33.25549342,3471.8,3471.7,0.4698]
[1754209003582,33.25549342,3471.8,3471.7,0.9039]
[1754209004192,33.25549342,3471.8,3471.1,0.002]
[1754209004193,33.0,3471.7,3471.1,0.002]
[1754209004353,40.0,3471.5,3471.1,0.4718]
[1754209004556,30.0,3471.4,3471.1,0.002]
[1754209004799,30.0,3471.4,3471.2,0.4698]
[1754209005669,40.0,3471.2,3471.1,0.002]
[1754209005869,30.0,3471.3,3471.1,0.002]
[1754209006073,33.0,3471.3,3471.2,0.4698]
[1754209006392,33.25553023,3471.3,3471.2,0.4698]
[1754209006583,33.0,3471.3,3471.2,0.4698]
[1754209006770,37.417,3471.3,3471.2,0.4698]
[1754209007906,37.417,3471.3,3471.1,0.002]
[1754209008056,7.417,3471.3,3471.1,0.002]
[1754209008263,31.48144192,3471.2,3471.1,0.002]
[1754209008459,34.70100851,3471.2,3471.1,0.002]
[1754209010463,35.13860851,3471.2,3471.1,0.002]
[1754209011088,34.70100851,3471.2,3471.1,0.002]
[1754209012164,35.25490851,3471.2,3471.1,0.002]
[1754209012589,34.70100851,3471.2,3471.1,0.002]
[1754209012790,31.70100851,3471.2,3471.1,0.4761]
[1754209013706,34.70100851,3471.2,3471.1,0.4761]
[1754209014069,7.66957719,3471.2,3471.1,0.9339]
[1754209015009,3.0,3471.2,3471.1,0.9339]
[1754209018020,10.0,3471.8,3471.1,0.9339]
[1754209018168,7.67051037,3471.7,3471.1,0.4598]
[1754209018369,3.0,3471.3,3471.2,0.4741]
[1754209018597,7.415,3471.3,3471.2,0.4741]
[1754209018769,3.0,3471.3,3471.2,0.9319]
[1754209020403,30.0,3471.3,3471.2,0.9319]
[1754209021909,30.0,3471.3,3471.2,0.4741]
[1754209022565,31.55722788,3471.3,3471.1,0.002]
[1754209022768,30.0,3471.2,3471.1,0.002]
[1754209022968,34.413,3471.2,3471.1,0.002]
[1754209023170,4.413,3471.2,3471.1,0.002]
[1754209024605,34.413,3471.2,3471.1,0.002]
[1754209024771,34.413,3471.2,3471.1,0.4761]
[1754209024973,30.0,3471.6,3471.1,0.9339]
[1754209025198,30.0,3471.4,3471.2,0.4741]
[1754209025512,34.412,3471.3,3471.2,0.4741]
[1754209027206,30.0,3471.2,3471.1,0.002]
[1754209027588,30.0,3471.2,3471.1,0.4598]
[1754209027786,30.0,3471.2,3471.1,0.4761]
[1754209028490,29.5,3471.2,3471.1,0.4761]
[1754209028987,29.5,3471.2,3471.1,0.9339]
[1754209030183,29.5,3471.2,3471.1,0.002]
[1754209030385,29.75577775,3471.2,3471.1,0.002]
[1754209030595,29.75577775,3471.2,3471.1,0.4761]
[1754209030786,29.75577775,3471.2,3471.1,0.002]
[1754209030993,30.10044298,3471.2,3471.1,0.002]
[1754209031519,33.65044298,3471.2,3471.1,0.002]
[1754209031686,34.20434298,3471.2,3471.1,0.002]
[1754209032320,35.93734298,3471.2,3471.1,0.002]
[1754209033506,40.34634298,3471.2,3471.1,0.002]
[1754209034792,35.93734298,3471.2,3471.1,0.002]
[1754209035122,40.34734298,3471.2,3471.1,0.002]
[1754209038288,40.34434298,3471.2,3471.1,0.002]
[1754209043437,40.22804298,3471.2,3471.1,0.002]
[1754209043637,40.34434298,3471.2,3471.1,0.002]
[1754209044081,40.22804298,3471.2,3471.1,0.002]
[1754209044786,40.34434298,3471.2,3471.1,0.002]
[1754209045783,40.22804298,3471.2,3471.1,0.002]
[1754209045978,35.82104298,3471.2,3471.1,0.002]
[1754209046287,35.82104298,3471.2,3471.1,0.9385]
[1754209046288,29.75577775,3471.2,3471.1,0.9385]
[1754209046491,34.16177775,3471.2,3471.1,0.9385]
[1754209046851,37.16177775,3471.2,3471.1,0.9385]
[1754209047089,37.16177775,3471.2,3471.1,0.002]
[1754209047260,40.58002482,3471.2,3471.1,0.002]
[1754209047464,40.58002482,3471.2,3471.1,0.5012]
[1754209047667,40.58102482,3471.2,3471.1,0.5012]
[1754209047988,40.58102482,3471.2,3471.1,0.002]
[1754209048349,40.58102482,3471.2,3471.1,0.5012]
[1754209048556,40.58102482,3471.2,3471.1,0.002]
[1754209049182,42.31402482,3471.2,3471.1,0.002]
[1754209049776,42.86332482,3471.2,3471.1,0.002]
[1754209050383,42.74702482,3471.2,3471.1,0.002]
[1754209050696,42.31402482,3471.2,3471.1,0.002]
[1754209051002,42.31402482,3471.2,3471.1,0.9385]
[1754209051297,37.90802482,3471.2,3471.1,0.9385]
[1754209051517,42.31402482,3471.2,3471.1,0.9385]
[1754209052610,42.31402482,3471.2,3471.1,0.5012]
[1754209052990,42.3136313,3471.2,3471.1,0.5012]
[1754209054374,42.31369602,3471.2,3471.1,0.5012]
[1754209055930,42.31369602,3471.2,3471.1,0.9385]
[1754209058894,42.31391949,3471.2,3471.1,0.9385]
[1754209060104,37.90791949,3471.2,3471.1,0.9385]
[1754209060305,42.31391949,3471.2,3471.1,0.9385]
[1754209060506,39.44567242,3471.2,3471.1,0.9385]
[1754209061331,39.44593353,3471.2,3471.1,0.9385]
[1754209062303,39.44595546,3471.2,3471.1,0.9385]
[1754209062713,39.44595546,3471.2,3471.1,0.002]
[1754209065345,39.44595546,3471.2,3471.1,0.5012]
[1754209065640,42.31420253,3471.2,3471.1,0.9385]
[1754209065840,37.90820253,3471.2,3471.1,0.9385]
[1754209066033,42.31420253,3471.2,3471.1,0.9385]
[1754209067657,42.31420099,3471.2,3471.1,0.9385]
[1754209072478,29.75695392,3471.2,3471.1,0.9385]
[1754209072639,34.16295392,3471.2,3471.1,0.9385]
[1754209073848,37.71295392,3471.2,3471.1,0.002]
[1754209074083,39.44695392,3471.2,3471.1,0.002]
[1754209075894,39.44695392,3471.2,3471.1,0.904]
[1754209076282,0.25695392,3471.2,3471.1,0.904]
[1754209077173,4.67695392,3471.2,3471.1,0.904]
[1754209077810,0.25695392,3471.2,3471.1,0.904]
[1754209078017,0.001,3471.2,3471.1,0.904]
[1754209080392,0.001,3471.2,3471.1,14.18133754]
[1754209080617,0.001,3471.2,3471.1,15.59947129]
[1754209085238,0.001,3471.2,3471.1,15.85492729]
[1754209085436,0.001,3471.6,3471.1,15.85492729]
[1754209085600,0.001,3471.6,3471.5,13.27733754]
[1754209086336,0.001,3471.6,3471.5,14.17933754]
[1754209086535,0.001,3471.6,3471.5,16.03917129]
[1754209089712,0.001,3471.6,3471.5,16.15465329]
[1754209090736,0.001,3471.6,3471.5,20.57165329]
[1754209095845,0.001,3472.6,3471.5,20.57165329]
[1754209096048,0.001,3472.6,3471.9,13.27733754]
[1754209096219,0.001,3472.6,3472.0,5.24224569]
[1754209096416,0.001,3472.6,3472.0,5.70004569]
[1754209099527,0.001,3472.6,3472.0,5.24224569]
[1754209099726,0.001,3472.6,3472.1,0.4827]
[1754209100034,0.001,3472.6,3472.2,4.416]
[1754209100249,0.001,3472.6,3472.2,4.8987]
[1754209100545,0.001,3472.6,3472.3,0.4827]
[1754209100929,0.001,3472.6,3472.4,0.4827]
[1754209101748,0.001,3472.6,3472.5,0.9444]
[1754209103238,0.001,3472.6,3472.5,0.4827]
[1754209107063,0.001,3472.6,3472.5,0.9444]
[1754209111865,0.001,3472.6,3472.0,0.4827]
[1754209112034,0.4302,3472.6,3472.1,4.407]
[1754209112763,0.4302,3472.6,3472.2,0.4827]
[1754209112966,0.4302,3472.6,3472.3,4.408]
[1754209113168,0.4302,3472.6,3472.2,0.4827]
[1754209113345,0.4302,3472.6,3472.3,4.408]
[1754209113926,0.001,3472.6,3472.3,4.408]
[1754209114926,0.001,3472.6,3472.2,0.4827]
[1754209115131,0.001,3472.6,3472.3,4.407]
[1754209115557,30.0,3472.5,3472.3,4.407]
[1754209116072,3.29744707,3472.5,3472.1,4.406]
[1754209116378,30.0,3472.4,3472.1,4.406]
[1754209116673,0.4292,3472.4,3472.1,4.406]
[1754209116850,40.0,3472.3,3472.1,4.406]
[1754209117176,30.0,3472.5,3472.1,4.8887]
[1754209117365,30.0,3472.5,3472.1,0.4827]
[1754209118242,30.0,3472.4,3472.1,0.4827]
[1754209119247,30.0,3472.3,3471.9,4.405]
[1754209119471,30.0,3472.2,3471.9,4.405]
[1754209119684,30.0,3472.2,3471.3,0.4617]
[1754209119851,30.0,3472.1,3471.6,0.4827]
[1754209120055,30.0,3472.0,3471.6,0.4827]
[1754209120363,30.0,3472.0,3471.7,0.4827]
[1754209120965,30.0,3472.0,3471.4,4.8687]
[1754209121165,30.0,3472.1,3471.8,0.4827]
[1754209121566,30.0,3472.3,3471.8,0.4827]
[1754209121770,30.0,3472.1,3471.8,0.4827]
[1754209122479,30.0,3472.1,3471.5,0.4617]
[1754209122786,30.0,3472.2,3471.6,0.4827]
[1754209126382,30.0,3472.1,3471.6,0.4827]
[1754209127290,30.0,3472.0,3471.5,0.4617]
[1754209127578,30.0,3472.0,3471.6,0.4827]
[1754209128075,30.0,3472.0,3471.7,0.4827]
[1754209129583,30.0,3472.0,3471.8,0.4827]
[1754209129968,30.0,3472.0,3471.6,0.4788]
[1754209130177,30.0,3472.0,3471.2,0.868295]
[1754209130382,0.4376,3472.0,3471.3,0.4788]
[1754209130696,30.0,3471.9,3471.3,0.4788]
[1754209131799,32.86824707,3471.9,3471.3,0.4788]
[1754209131960,30.0,3471.8,3471.3,0.4788]
[1754209132375,30.4376,3471.8,3471.4,0.4788]
[1754209132666,30.03600541,3471.7,3471.2,0.002]
[1754209132858,30.0,3471.7,3471.2,0.4808]
[1754209133055,30.0,3471.5,3471.3,0.002]
[1754209133389,0.03600645,3471.6,3471.3,0.002]
[1754209133390,30.03297803,3471.4,3471.3,0.002]
[1754209133607,30.0,3471.5,3471.3,0.002]
[1754209133766,30.03378508,3471.4,3471.3,0.002]
[1754209133956,30.0,3471.4,3471.3,0.002]
[1754209135084,4.405,3471.6,3471.3,0.002]
[1754209135085,30.0,3471.5,3471.3,0.002]
[1754209138101,30.0,3471.5,3471.3,0.4808]
[1754209138595,0.03378508,3471.4,3471.3,0.002]
[1754209138802,30.03378508,3471.4,3471.3,0.002]
[1754209138962,30.0,3471.5,3471.3,0.002]
[1754209139284,30.03378508,3471.4,3471.3,0.002]
[1754209139486,30.0,3471.4,3471.3,0.002]
[1754209140308,3.30584707,3471.4,3471.3,0.002]
[1754209140516,37.82714707,3471.4,3471.3,0.002]
[1754209140800,40.96627141,3471.4,3471.3,0.002]
[1754209140965,41.08257141,3471.4,3471.3,0.002]
[1754209142281,40.82714707,3471.4,3471.3,0.002]
[1754209142608,40.27324707,3471.4,3471.3,0.002]
[1754209142898,41.08247279,3471.4,3471.3,0.002]
[1754209143115,41.63247279,3471.4,3471.3,0.002]
[1754209146214,36.67357279,3471.4,3471.3,0.002]
[1754209146708,41.07857279,3471.4,3471.3,0.002]
[1754209147200,41.07840016,3471.4,3471.3,0.002]
[1754209151063,41.63230016,3471.4,3471.3,0.002]
[1754209151566,41.51600016,3471.4,3471.3,0.002]
[1754209152818,41.07840016,3471.4,3471.3,0.002]
[1754209154974,41.07840016,3471.4,3471.3,0.4808]
[1754209155875,41.07840016,3471.4,3471.3,0.002]
[1754209158105,41.07840016,3471.4,3471.3,0.4808]
[1754209158303,41.07840016,3471.4,3471.3,0.9148]
[1754209159386,33.25515309,3471.4,3471.3,0.9148]
[1754209159722,30.0,3471.5,3471.3,0.9148]
[1754209159915,30.0,3471.5,3471.3,0.002]
[1754209160081,30.0,3471.5,3471.4,0.9539]
[1754209160283,4.405,3471.6,3471.4,0.9539]
[1754209160489,30.0,3471.5,3471.4,0.9539]
[1754209160689,30.0,3471.5,3471.3,0.002]
[1754209161286,30.0,3471.5,3471.4,0.9539]
[1754209161493,30.0,3471.7,3471.4,0.9539]
[1754209161818,4.405,3471.6,3471.5,0.9539]
[1754209162409,4.66066626,3471.6,3471.5,0.9539]
[1754209163826,0.25566626,3471.6,3471.5,0.9539]
[1754209164056,4.405,3471.6,3471.5,0.9539]
[1754209164338,4.66066626,3471.6,3471.5,0.9539]
[1754209165428,4.66066626,3471.6,3471.3,0.002]
[1754209165429,34.66066626,3471.6,3471.3,0.002]
[1754209165617,30.0,3471.4,3471.3,0.002]
[1754209165924,34.66066626,3471.4,3471.3,0.002]
[1754209166131,34.66066626,3471.4,3471.3,0.4851]
[1754209166992,34.66066626,3471.4,3471.3,0.9559]
[1754209168686,34.66066626,3471.4,3471.3,0.4851]
[1754209174052,39.22937058,3471.4,3471.3,0.002]
[1754209174360,39.22937058,3471.4,3471.3,0.4851]
[1754209174522,37.66066626,3471.4,3471.3,0.4851]
[1754209175035,37.66066626,3471.4,3471.3,0.9559]
[1754209176859,37.66066626,3471.4,3471.3,0.4851]
[1754209179460,37.66066626,3471.4,3471.3,0.002]
[1754209180863,38.21066626,3471.4,3471.3,0.002]
[1754209181031,41.07891333,3471.4,3471.3,0.002]
[1754209181231,41.51651333,3471.4,3471.3,0.002]
[1754209181962,42.81291333,3471.4,3471.3,0.002]
[1754209182263,41.07891333,3471.4,3471.3,0.002]
[1754209183556,41.07891333,3471.4,3471.3,0.4851]
[1754209184450,36.67391333,3471.4,3471.3,0.4851]
[1754209184656,38.20966626,3471.4,3471.3,0.4851]
[1754209188759,38.20966626,3471.4,3471.3,0.002]
[1754209190850,38.21001009,3471.4,3471.3,0.002]
[1754209192639,38.21001009,3471.4,3471.3,0.4809]
[1754209193881,38.2100217,3471.4,3471.3,0.4809]
[1754209194676,33.8060217,3471.4,3471.3,0.002]
[1754209194976,38.2090217,3471.4,3471.3,0.9292]
[1754209196476,38.20904692,3471.4,3471.3,0.9292]
[1754209197848,38.21004692,3471.4,3471.3,0.9292]
[1754209200749,41.07829399,3471.4,3471.3,0.002]
[1754209201248,41.07829399,3471.4,3471.3,0.4809]
[1754209202593,38.21004692,3471.4,3471.3,0.4809]
[1754209204181,38.21004692,3471.4,3471.3,0.002]
[1754209206088,38.21004692,3471.4,3471.3,0.4809]
[1754209208584,38.21004692,3471.4,3471.3,0.002]
[1754209209661,40.49164692,3471.4,3471.3,0.002]
[1754209209884,43.35989399,3471.4,3471.3,0.002]
[1754209212100,43.75066885,3471.4,3471.3,0.002]
[1754209213133,43.35981094,3471.4,3471.3,0.002]
[1754209216174,43.7505858,3471.4,3471.3,0.002]
[1754209216801,43.35981094,3471.4,3471.3,0.002]
[1754209217788,43.47539194,3471.4,3471.3,0.002]
[1754209219815,42.92579194,3471.4,3471.3,0.002]
[1754209220377,42.81021094,3471.4,3471.3,0.002]
[1754209229021,43.24781094,3471.4,3471.3,0.002]
[1754209230003,42.81021094,3471.4,3471.3,0.002]
[1754209231293,43.36411094,3471.4,3471.3,0.002]
[1754209231495,43.47969094,3471.4,3471.3,0.002]
[1754209231811,43.36339094,3471.4,3471.3,0.002]
[1754209232010,42.92579094,3471.4,3471.3,0.002]
[1754209232226,43.47969094,3471.4,3471.3,0.002]
[1754209232600,43.36339094,3471.4,3471.3,0.002]
[1754209233145,42.92579094,3471.4,3471.3,0.002]
[1754209236434,50.06779094,3471.4,3471.3,0.002]
[1754209237331,50.50539094,3471.4,3471.3,0.002]
[1754209237729,51.0124658,3471.4,3471.3,0.002]
[1754209237930,51.38499892,3471.4,3471.3,0.002]
[1754209239029,51.0124658,3471.4,3471.3,0.002]
[1754209239411,50.62169094,3471.4,3471.3,0.002]
[1754209240504,43.47969094,3471.4,3471.3,0.002]
[1754209242435,43.47969094,3471.4,3471.2,0.002]
[1754209242436,35.284,3471.3,3471.2,0.002]
[1754209242615,42.80816673,3471.3,3471.2,0.002]
[1754209247837,45.68893186,3471.3,3471.2,0.002]
[1754209248011,46.12653186,3471.3,3471.2,0.002]
[1754209248206,50.42526673,3471.3,3471.2,0.002]
[1754209252554,53.30603186,3471.3,3471.2,0.002]
[1754209252732,54.13030672,3471.3,3471.2,0.002]
[1754209252914,38.16484812,3471.2,3471.1,0.002]
[1754209253114,44.35708095,3471.2,3471.1,0.002]
[1754209253546,44.83388095,3471.2,3471.1,0.002]
[1754209253721,45.38368095,3471.2,3471.1,0.002]
[1754209253914,45.26738095,3471.2,3471.1,0.002]
[1754209254755,45.12288095,3471.2,3471.1,0.002]
[1754209256047,45.55638095,3471.2,3471.1,0.002]
[1754209256353,42.24203283,3471.2,3471.1,0.002]
[1754209257154,49.39203283,3471.2,3471.1,0.002]
[1754209259049,52.27288095,3471.2,3471.1,0.002]
[1754209259258,49.39203283,3471.2,3471.1,0.002]
[1754209260228,49.39203283,3471.2,3471.1,0.4788]
[1754209261708,49.39203283,3471.2,3471.1,0.002]
[1754209262262,49.39203283,3471.2,3471.1,0.4788]
[1754209262829,44.99303283,3471.2,3471.1,0.13216669]
[1754209263029,35.284,3471.0,3470.9,0.002]
[1754209263234,42.80616673,3471.0,3470.9,0.002]
[1754209263755,42.92176773,3471.0,3470.9,0.002]
[1754209263935,42.92176773,3471.0,3470.9,0.4354]
[1754209264429,49.85376773,3471.0,3470.9,0.4354]
[1754209264842,49.85376773,3471.0,3470.9,0.9122]
[1754209268074,49.85376773,3471.0,3470.9,0.002]
[1754209268654,49.85376773,3471.0,3470.9,0.4788]
[1754209269043,57.00376773,3471.0,3470.9,0.4788]
[1754209269731,57.00376773,3471.0,3470.9,0.002]
[1754209274847,57.29276773,3471.0,3470.9,0.002]
[1754209277681,57.68354259,3471.0,3470.9,0.002]
[1754209277869,2.573,3470.6,3468.4,0.002]
[1754209278065,35.573,3470.4,3469.7,0.4768]
[1754209278268,40.61669452,3470.4,3469.7,0.4334]
[1754209278459,48.21849452,3470.4,3469.9,0.4768]
[1754209278861,51.21563473,3470.4,3469.9,0.4768]
[1754209279059,49.87143569,3470.4,3469.9,0.4768]
[1754209279261,49.02686083,3470.4,3470.3,0.9122]
[1754209279980,49.02686083,3470.4,3470.3,0.4788]
[1754209280280,49.02686083,3470.4,3470.3,0.002]
[1754209281074,49.02686083,3470.4,3470.3,0.4889]
[1754209281664,49.24856099,3470.4,3470.3,0.4889]
[1754209283965,42.10056099,3470.4,3470.3,0.002]
[1754209285600,42.10056099,3470.4,3470.3,0.932]
[1754209285601,38.26056099,3470.4,3470.3,0.932]
[1754209285802,32.21161982,3470.4,3470.3,0.932]
[1754209285971,39.60761982,3470.4,3470.3,0.932]
[1754209286175,28.79351966,3470.4,3470.3,0.932]
[1754209286369,34.65191966,3470.4,3470.3,0.932]
[1754209286903,37.65191966,3470.4,3470.3,0.932]
[1754209287074,33.25591966,3470.4,3470.3,0.932]
[1754209287404,30.25591966,3470.4,3470.3,0.932]
[1754209287565,34.65191966,3470.4,3470.3,0.932]
[1754209287769,37.65191966,3470.4,3470.3,0.932]
[1754209290073,37.55545497,3470.4,3470.3,0.932]
[1754209293109,37.55535888,3470.4,3470.3,0.932]
[1754209295106,38.10535888,3470.4,3470.3,0.4889]
[1754209295282,37.946,3470.4,3470.3,0.4889]
[1754209295487,38.10525132,3470.4,3470.3,0.4889]
[1754209296093,38.1052506,3470.4,3470.3,0.4889]
[1754209300677,0.001,3471.3,3470.3,13.76623754]
[1754209300882,30.0,3471.0,3470.7,13.27733754]
[1754209301093,0.1591669,3470.9,3470.7,13.27733754]
[1754209301297,30.0,3470.9,3470.8,0.4869]
[1754209301492,0.1591669,3470.9,3470.8,0.4869]
[1754209302402,4.393,3470.9,3470.8,0.4869]
[1754209302600,4.5521669,3470.9,3470.8,0.4869]
[1754209303917,34.5521669,3470.9,3470.8,0.4869]
[1754209305399,34.393,3470.9,3470.8,0.4869]
[1754209310706,33.0,3470.8,3470.6,0.002]
[1754209310886,34.392,3470.7,3470.6,0.002]
[1754209311230,34.8207,3470.7,3470.6,0.4601]
[1754209311527,35.3707,3470.7,3470.6,0.4601]
[1754209312017,35.3707,3470.7,3470.6,0.002]
[1754209312220,38.3707,3470.7,3470.6,0.002]
[1754209313204,38.3707,3470.7,3470.6,0.4601]
[1754209314016,37.942,3470.7,3470.6,0.4601]
[1754209314259,37.392,3470.7,3470.6,0.4601]
[1754209315134,7.392,3470.7,3470.6,0.4601]
[1754209317032,3.0,3470.7,3470.6,0.4601]
[1754209317239,3.0,3470.7,3470.6,1.83404375]
[1754209318204,3.11564409,3470.7,3470.6,1.83404375]
[1754209320748,3.0,3470.7,3470.6,1.83404375]
[1754209322335,7.392,3470.7,3470.6,0.002]
[1754209322650,37.93636725,3470.7,3470.6,0.002]
[1754209323512,0.11566725,3470.7,3470.6,0.4601]
[1754209323713,0.11666725,3471.0,3470.6,0.4601]
[1754209324046,0.11666725,3471.0,3470.7,1.37374375]
[1754209324413,0.11666725,3471.0,3470.8,0.4581]
[1754209324748,0.11566725,3470.9,3470.8,0.4581]
[1754209325859,4.50866725,3471.0,3470.8,0.4581]
[1754209326031,0.11566725,3470.9,3470.8,0.64148438]
[1754209327470,0.001,3470.9,3470.8,0.64148438]
[1754209327631,0.11666725,3470.9,3470.8,0.64148438]
[1754209331564,0.54536725,3470.9,3470.8,0.64148438]
[1754209331730,0.54536725,3470.9,3470.7,1.37374375]
[1754209331932,0.4287,3470.8,3470.6,0.002]
[1754209332143,0.54436725,3470.8,3470.6,0.4601]
[1754209332365,0.4287,3470.7,3470.6,0.002]
[1754209333160,0.4287,3470.7,3470.6,0.4601]
[1754209334472,0.54436725,3470.7,3470.6,0.94561]
[1754209334829,0.4287,3470.7,3470.6,0.94561]
[1754209335031,0.54436725,3470.7,3470.6,0.94561]
[1754209335655,0.4287,3470.7,3470.6,0.94561]
[1754209335833,0.11566725,3470.8,3470.6,0.94561]
[1754209336035,0.11566725,3470.8,3470.6,0.48751]
[1754209336235,0.11566725,3470.8,3470.7,0.4581]
[1754209343669,30.0,3470.8,3470.7,0.4581]
[1754209345573,0.4672,3470.8,3470.7,0.4581]
[1754209350977,0.4682,3470.8,3470.7,0.4581]
[1754209352476,0.4682,3470.8,3470.7,0.4842]
[1754209352477,0.001,3470.8,3470.7,0.4842]
[1754209352650,0.001,3470.8,3470.7,1.90930475]
[1754209352978,0.001,3470.8,3470.7,1.93811738]
[1754209353646,0.001,3470.8,3470.7,9.32711738]
[1754209353848,0.001,3470.8,3470.7,9.29830475]
[1754209354455,0.001,3470.8,3470.7,6.29830475]
[1754209357942,0.001,3470.8,3470.7,9.29830475]
[1754209358182,0.001,3471.2,3470.7,9.29830475]
[1754209358377,0.001,3471.2,3471.1,13.27733754]
[1754209359055,0.001,3471.2,3471.1,13.76153754]
[1754209360849,0.001,3471.2,3471.1,16.76153754]
[1754209362080,0.001,3471.6,3471.2,3.0]
[1754209362280,0.001,3471.6,3471.5,13.27733754]
[1754209362484,0.001,3471.6,3471.5,18.8803545]
[1754209362683,0.001,3471.6,3471.5,19.3645545]
[1754209368359,0.001,3471.8,3471.5,19.3645545]
[1754209368558,0.001,3471.8,3471.6,0.02880516]
[1754209368806,0.001,3471.8,3471.7,4.387]
[1754209369008,0.001,3471.8,3471.7,4.87251]
[1754209369507,0.001,3471.8,3471.7,5.35671]
[1754209371469,0.4738,3471.8,3471.7,0.48551]
[1754209371669,0.4738,3471.8,3471.7,4.387]
[1754209371882,0.924,3471.8,3471.7,4.387]
[1754209372303,0.4738,3471.8,3471.7,4.387]
[1754209373173,0.4738,3471.8,3471.7,4.8587]
[1754209373391,0.4738,3471.8,3471.7,4.8844175]
[1754209373906,0.924,3471.8,3471.7,4.8844175]
[1754209374387,0.4738,3471.8,3471.7,4.8844175]
[1754209374956,0.924,3471.8,3471.7,4.8844175]
[1754209375473,0.4738,3471.8,3471.7,4.8844175]
[1754209375682,0.4738,3471.8,3471.7,0.4974175]
[1754209376166,0.924,3471.8,3471.7,0.4974175]
[1754209376800,0.924,3471.8,3471.6,4.387]
[1754209376970,0.001,3471.8,3471.7,0.8662]
[1754209377172,0.001,3471.8,3471.6,4.387]
[1754209377572,0.923,3471.7,3471.6,4.387]
[1754209379102,0.923,3471.7,3471.5,4.386]
[1754209379263,0.4728,3471.6,3471.5,4.386]
[1754209381002,0.4728,3471.6,3471.3,4.8577]
[1754209381220,0.923,3471.6,3471.3,4.91905]
[1754209381695,0.4502,3471.6,3471.3,4.91905]
[1754209381902,0.4728,3471.5,3471.3,4.91905]
[1754209382675,0.4728,3471.5,3471.2,0.4728]
[1754209382676,30.0,3471.3,3471.2,0.4728]
[1754209382976,0.4728,3471.3,3470.8,13.27733754]
[1754209383183,0.001,3471.8,3470.8,13.27733754]
[1754209383184,0.4728,3471.2,3470.9,0.4717]
[1754209383391,0.4728,3471.2,3470.9,2.23823375]
[1754209383582,0.4502,3471.7,3470.9,1.76653375]